[Event "*** SCC Grand Prix: Titled Tuesday Blitz"]
[Site "Chess.com"]
[Date "2020.07.21"]
[Round "9"]
[White "r31415"]
[Black "Dauletova"]
[Result "0-1"]
[WhiteElo "2439"]
[BlackElo "2347"]
[TimeControl "180+1"]
[EndTime "11:49:00 PDT"]
[Termination "Dauletova won by checkmate"]

1. c4 {[%clk 0:03:00.9]} 1... e5 {[%clk 0:02:59.5]} 2. Nc3 {[%clk 0:03:00.9]}
2... Nf6 {[%clk 0:02:59]} 3. Nf3 {[%clk 0:03:01.4]} 3... Nc6 {[%clk 0:02:58.1]}
4. e3 {[%clk 0:03:01.8]} 4... Bb4 {[%clk 0:02:53.6]} 5. Qc2 {[%clk 0:03:02]}
5... Bxc3 {[%clk 0:02:52.4]} 6. Qxc3 {[%clk 0:03:02.3]} 6... Qe7 {[%clk
0:02:50.6]} 7. d4 {[%clk 0:03:02.1]} 7... Ne4 {[%clk 0:02:42.8]} 8. Qc2 {[%clk
0:02:55.5]} 8... exd4 {[%clk 0:02:41.1]} 9. Bd3 {[%clk 0:02:48.6]} 9... Nb4
{[%clk 0:01:42.2]} 10. Qb1 {[%clk 0:02:47.2]} 10... Nxd3+ {[%clk 0:01:42.1]} 11.
Qxd3 {[%clk 0:02:46.6]} 11... dxe3 {[%clk 0:01:41.1]} 12. Bxe3 {[%clk
0:02:46.1]} 12... O-O {[%clk 0:01:39.3]} 13. O-O {[%clk 0:02:45.3]} 13... d6
{[%clk 0:01:37.2]} 14. Rfe1 {[%clk 0:02:44.9]} 14... Bf5 {[%clk 0:01:36.6]} 15.
Nd4 {[%clk 0:02:04.6]} 15... Bg6 {[%clk 0:01:36]} 16. Bf4 {[%clk 0:02:00.8]}
16... Rfe8 {[%clk 0:01:28.6]} 17. Qb3 {[%clk 0:01:42]} 17... Qh4 {[%clk
0:01:01.1]} 18. g3 {[%clk 0:01:38.5]} 18... Qf6 {[%clk 0:00:53.2]} 19. Nb5
{[%clk 0:01:31.2]} 19... Re7 {[%clk 0:00:46.9]} 20. Re3 {[%clk 0:01:14.7]} 20...
Rae8 {[%clk 0:00:33.8]} 21. Rae1 {[%clk 0:01:13.5]} 21... a6 {[%clk 0:00:31.6]}
22. Na3 {[%clk 0:01:10.2]} 22... Nc5 {[%clk 0:00:19.9]} 23. Qc3 {[%clk
0:00:56.1]} 23... Rxe3 {[%clk 0:00:18.3]} 24. Rxe3 {[%clk 0:00:54.6]} 24... Rxe3
{[%clk 0:00:18.4]} 25. Qxe3 {[%clk 0:00:54.1]} 25... Qe6 {[%clk 0:00:18.4]} 26.
Qd2 {[%clk 0:00:36.7]} 26... Be4 {[%clk 0:00:17.8]} 27. Qe2 {[%clk 0:00:25.8]}
27... h6 {[%clk 0:00:16.7]} 28. Nc2 {[%clk 0:00:25.7]} 28... Qh3 {[%clk
0:00:11.1]} 29. f3 {[%clk 0:00:24.3]} 29... Bc6 {[%clk 0:00:09.4]} 30. Nd4
{[%clk 0:00:23.4]} 30... Bd7 {[%clk 0:00:09.6]} 31. g4 {[%clk 0:00:18.8]} 31...
Ne6 {[%clk 0:00:09.3]} 32. Bg3 {[%clk 0:00:18.9]} 32... Nxd4 {[%clk 0:00:08.3]}
33. Qe3 {[%clk 0:00:19.1]} 33... Ne6 {[%clk 0:00:08]} 34. Kf2 {[%clk 0:00:18.9]}
34... Bc6 {[%clk 0:00:06.2]} 35. b4 {[%clk 0:00:18.5]} 35... h5 {[%clk
0:00:06.2]} 36. b5 {[%clk 0:00:14.2]} 36... axb5 {[%clk 0:00:07.1]} 37. cxb5
{[%clk 0:00:15.1]} 37... Bxb5 {[%clk 0:00:07.3]} 38. gxh5 {[%clk 0:00:16]} 38...
Qxh5 {[%clk 0:00:06.8]} 39. Qa7 {[%clk 0:00:16.9]} 39... Qf5 {[%clk 0:00:06.8]}
40. Qxb7 {[%clk 0:00:16.1]} 40... Kh7 {[%clk 0:00:07.1]} 41. Kg2 {[%clk
0:00:14.5]} 41... Qc2+ {[%clk 0:00:07.2]} 42. Kh3 {[%clk 0:00:14.9]} 42... Bf1+
{[%clk 0:00:07.7]} 43. Kh4 {[%clk 0:00:15]} 43... Qf5 {[%clk 0:00:07.5]} 44. f4
{[%clk 0:00:07.2]} 44... Qh3# {[%clk 0:00:07.4]} 0-1

[Event "*** SCC Grand Prix: Titled Tuesday Blitz"]
[Site "Chess.com"]
[Date "2020.07.21"]
[Round "9"]
[White "FMalexhdez"]
[Black "Sacbutt"]
[Result "0-1"]
[WhiteElo "2134"]
[BlackElo "2254"]
[TimeControl "180+1"]
[EndTime "11:49:00 PDT"]
[Termination "Sacbutt won by resignation"]

1. e4 {[%clk 0:03:00.9]} 1... c5 {[%clk 0:02:59.2]} 2. Nf3 {[%clk 0:03:00.6]}
2... d6 {[%clk 0:02:59.5]} 3. d4 {[%clk 0:03:01.3]} 3... cxd4 {[%clk 0:03:00.1]}
4. Nxd4 {[%clk 0:03:02]} 4... Nf6 {[%clk 0:03:00.7]} 5. Nc3 {[%clk 0:03:02.5]}
5... a6 {[%clk 0:03:01.3]} 6. h3 {[%clk 0:03:02]} 6... e5 {[%clk 0:02:55.4]} 7.
Nde2 {[%clk 0:03:01.7]} 7... Be7 {[%clk 0:02:54.8]} 8. g4 {[%clk 0:03:01.5]}
8... O-O {[%clk 0:02:54.2]} 9. Bg2 {[%clk 0:03:01.8]} 9... Nc6 {[%clk
0:02:53.1]} 10. O-O {[%clk 0:03:00.4]} 10... b5 {[%clk 0:02:51.3]} 11. Ng3
{[%clk 0:02:59.5]} 11... g6 {[%clk 0:02:49.5]} 12. g5 {[%clk 0:02:58.2]} 12...
Nd7 {[%clk 0:02:43.2]} 13. h4 {[%clk 0:02:58.1]} 13... Nb6 {[%clk 0:02:28.3]}
14. Nd5 {[%clk 0:02:49.5]} 14... Nxd5 {[%clk 0:02:26.7]} 15. exd5 {[%clk
0:02:47.5]} 15... Nd4 {[%clk 0:02:19]} 16. f4 {[%clk 0:02:22.6]} 16... Nf5
{[%clk 0:02:13.3]} 17. Nxf5 {[%clk 0:02:07.7]} 17... Bxf5 {[%clk 0:02:13.3]} 18.
fxe5 {[%clk 0:02:04]} 18... dxe5 {[%clk 0:02:14.2]} 19. Be3 {[%clk 0:01:54.2]}
19... Bd6 {[%clk 0:02:07.2]} 20. c3 {[%clk 0:01:48.3]} 20... Qd7 {[%clk
0:02:05.9]} 21. Qe2 {[%clk 0:01:29.6]} 21... Rad8 {[%clk 0:02:05.1]} 22. Rad1
{[%clk 0:01:24.5]} 22... Bg4 {[%clk 0:01:49.7]} 23. Bf3 {[%clk 0:01:22.1]} 23...
Bxf3 {[%clk 0:01:43.8]} 24. Qxf3 {[%clk 0:01:22]} 24... Rc8 {[%clk 0:01:32.3]}
25. h5 {[%clk 0:01:15.6]} 25... Rc4 {[%clk 0:01:27.2]} 26. h6 {[%clk 0:01:05.3]}
26... Qg4+ {[%clk 0:01:15]} 27. Kf2 {[%clk 0:00:40.4]} 27... Qxf3+ {[%clk
0:01:06]} 28. Kxf3 {[%clk 0:00:40.5]} 28... f5 {[%clk 0:01:04.5]} 29. gxf6
{[%clk 0:00:39]} 29... Rxf6+ {[%clk 0:01:04.7]} 30. Ke2 {[%clk 0:00:39.5]} 30...
Rxf1 {[%clk 0:00:58.3]} 31. Rxf1 {[%clk 0:00:39.6]} 31... Rh4 {[%clk 0:00:58.8]}
32. Rf6 {[%clk 0:00:38.5]} 32... Bf8 {[%clk 0:00:52.5]} 33. d6 {[%clk
0:00:37.7]} 33... Rh2+ {[%clk 0:00:36.8]} 34. Bf2 {[%clk 0:00:33]} 34... Rxh6
{[%clk 0:00:22.3]} 35. d7 {[%clk 0:00:32.4]} 35... Be7 {[%clk 0:00:22.6]} 36.
Re6 {[%clk 0:00:20.5]} 36... Kf7 {[%clk 0:00:20.3]} 37. Rxe5 {[%clk 0:00:20.7]}
37... Rh2 {[%clk 0:00:13.7]} 38. Kf3 {[%clk 0:00:18.9]} 38... Rh3+ {[%clk
0:00:13.8]} 39. Kg2 {[%clk 0:00:16.6]} 39... Rh5 {[%clk 0:00:11.4]} 40. Re4
{[%clk 0:00:12.8]} 40... Rd5 {[%clk 0:00:10.5]} 41. Rf4+ {[%clk 0:00:07.7]}
41... Ke6 {[%clk 0:00:10.8]} 42. Re4+ {[%clk 0:00:06.9]} 42... Kxd7 {[%clk
0:00:11.1]} 43. Bd4 {[%clk 0:00:05.9]} 43... Rf5 {[%clk 0:00:08]} 44. Kg3 {[%clk
0:00:05.1]} 44... Rf7 {[%clk 0:00:08]} 45. b3 {[%clk 0:00:05.2]} 45... Bd6+
{[%clk 0:00:08]} 46. Kg4 {[%clk 0:00:05]} 46... Re7 {[%clk 0:00:07.1]} 47. Kg5
{[%clk 0:00:04.7]} 47... Rxe4 {[%clk 0:00:06.9]} 0-1

[Event "*** SCC Grand Prix: Titled Tuesday Blitz"]
[Site "Chess.com"]
[Date "2020.07.21"]
[Round "9"]
[White "kobemagic"]
[Black "Vladislav_Chizhikov"]
[Result "0-1"]
[WhiteElo "2328"]
[BlackElo "2450"]
[TimeControl "180+1"]
[EndTime "11:49:01 PDT"]
[Termination "Vladislav_Chizhikov won on time"]

1. d4 {[%clk 0:03:00.9]} 1... d5 {[%clk 0:03:00.3]} 2. Nf3 {[%clk 0:02:55]} 2...
c6 {[%clk 0:03:00.5]} 3. Bf4 {[%clk 0:02:51.5]} 3... Bf5 {[%clk 0:03:00.7]} 4.
c3 {[%clk 0:02:48.4]} 4... e6 {[%clk 0:03:01]} 5. Qb3 {[%clk 0:02:48.2]} 5...
Qb6 {[%clk 0:03:01.4]} 6. Nbd2 {[%clk 0:02:47.2]} 6... Nd7 {[%clk 0:03:00.8]} 7.
Nh4 {[%clk 0:02:45.6]} 7... Bg6 {[%clk 0:03:00.3]} 8. Nxg6 {[%clk 0:02:44.4]}
8... hxg6 {[%clk 0:03:01.2]} 9. h3 {[%clk 0:02:44.6]} 9... c5 {[%clk 0:03:00.2]}
10. e3 {[%clk 0:02:37.9]} 10... c4 {[%clk 0:02:58.9]} 11. Qc2 {[%clk 0:02:37.7]}
11... Ngf6 {[%clk 0:02:55.9]} 12. g4 {[%clk 0:02:37.6]} 12... Qa5 {[%clk
0:02:54.6]} 13. Bg2 {[%clk 0:02:37.3]} 13... b5 {[%clk 0:02:52.7]} 14. e4 {[%clk
0:02:31.2]} 14... Nb6 {[%clk 0:02:50.3]} 15. O-O {[%clk 0:02:21.6]} 15... Be7
{[%clk 0:02:45.3]} 16. a3 {[%clk 0:02:20.2]} 16... Qa4 {[%clk 0:02:43]} 17. Qc1
{[%clk 0:02:16.8]} 17... dxe4 {[%clk 0:02:33.9]} 18. Nxe4 {[%clk 0:02:15.4]}
18... Nxe4 {[%clk 0:02:30.6]} 19. Bxe4 {[%clk 0:02:14.6]} 19... Rc8 {[%clk
0:02:16.3]} 20. Bg2 {[%clk 0:02:14.7]} 20... O-O {[%clk 0:02:09]} 21. Bg3 {[%clk
0:02:15]} 21... Nd5 {[%clk 0:02:06]} 22. Qd2 {[%clk 0:02:14.9]} 22... Rcd8
{[%clk 0:01:59.6]} 23. Rae1 {[%clk 0:02:15.2]} 23... a5 {[%clk 0:01:57.7]} 24.
f4 {[%clk 0:02:13.4]} 24... Bd6 {[%clk 0:01:56.7]} 25. Bxd5 {[%clk 0:02:04]}
25... exd5 {[%clk 0:01:56.2]} 26. Qg2 {[%clk 0:02:04.9]} 26... b4 {[%clk
0:01:49.2]} 27. axb4 {[%clk 0:02:03.2]} 27... axb4 {[%clk 0:01:49.1]} 28. Qxd5
{[%clk 0:01:52.4]} 28... bxc3 {[%clk 0:01:48.5]} 29. bxc3 {[%clk 0:01:50.6]}
29... Bxf4 {[%clk 0:01:48.1]} 30. Qf3 {[%clk 0:01:50.6]} 30... Bxg3 {[%clk
0:01:40.7]} 31. Qxg3 {[%clk 0:01:51.5]} 31... Rb8 {[%clk 0:01:37.7]} 32. Re7
{[%clk 0:01:10.8]} 32... Rb3 {[%clk 0:01:34.5]} 33. Qf3 {[%clk 0:01:05.1]} 33...
Kh7 {[%clk 0:01:23.4]} 34. Qg3 {[%clk 0:00:44.5]} 34... Qa3 {[%clk 0:01:02]} 35.
Rfxf7 {[%clk 0:00:32.6]} 35... Rxf7 {[%clk 0:01:01.7]} 36. Rxf7 {[%clk
0:00:29.6]} 36... Rxc3 {[%clk 0:01:00.6]} 37. Qh4+ {[%clk 0:00:23]} 37... Kg8
{[%clk 0:00:59.7]} 38. Rf2 {[%clk 0:00:21.6]} 38... Rc1+ {[%clk 0:00:37.7]} 39.
Kg2 {[%clk 0:00:19.9]} 39... Qa8+ {[%clk 0:00:35.6]} 40. Rf3 {[%clk 0:00:15.6]}
40... c3 {[%clk 0:00:34.7]} 41. Qf2 {[%clk 0:00:11.4]} 41... c2 {[%clk
0:00:30.5]} 42. Kg3 {[%clk 0:00:11.2]} 42... Qb8+ {[%clk 0:00:24.5]} 43. Kg2
{[%clk 0:00:11.1]} 43... Qb7 {[%clk 0:00:20.4]} 44. Kg3 {[%clk 0:00:10.5]} 44...
Qc7+ {[%clk 0:00:20.5]} 45. Kg2 {[%clk 0:00:06.7]} 45... Rg1+ {[%clk 0:00:19.9]}
46. Qxg1 {[%clk 0:00:05.5]} 46... c1=Q {[%clk 0:00:19.9]} 47. Qxc1 {[%clk
0:00:03.8]} 47... Qxc1 {[%clk 0:00:19.6]} 0-1

[Event "*** SCC Grand Prix: Titled Tuesday Blitz"]
[Site "Chess.com"]
[Date "2020.07.21"]
[Round "9"]
[White "Schack-Hugo"]
[Black "Sjakkerntobi"]
[Result "1-0"]
[WhiteElo "2220"]
[BlackElo "2419"]
[TimeControl "180+1"]
[EndTime "11:49:02 PDT"]
[Termination "Schack-Hugo won by resignation"]

1. c3 {[%clk 0:03:00.9]} 1... d5 {[%clk 0:02:59.1]} 2. d4 {[%clk 0:03:01.8]}
2... Nf6 {[%clk 0:02:59.6]} 3. Nf3 {[%clk 0:03:01.8]} 3... e6 {[%clk 0:02:59.9]}
4. g3 {[%clk 0:03:02.1]} 4... c5 {[%clk 0:03:00.5]} 5. Bg2 {[%clk 0:03:02.4]}
5... Nc6 {[%clk 0:03:01.4]} 6. O-O {[%clk 0:03:02]} 6... Be7 {[%clk 0:03:02.1]}
7. e3 {[%clk 0:03:02]} 7... O-O {[%clk 0:03:02.6]} 8. Nbd2 {[%clk 0:03:02.4]}
8... b6 {[%clk 0:03:00.6]} 9. b3 {[%clk 0:03:02.5]} 9... Bb7 {[%clk 0:03:01]}
10. Bb2 {[%clk 0:03:02.4]} 10... Rc8 {[%clk 0:03:00.8]} 11. Rc1 {[%clk
0:03:00.5]} 11... cxd4 {[%clk 0:02:56.2]} 12. exd4 {[%clk 0:03:00.1]} 12... Bd6
{[%clk 0:02:49]} 13. Re1 {[%clk 0:02:59.8]} 13... Ne7 {[%clk 0:02:47.8]} 14. Ne5
{[%clk 0:02:59.1]} 14... Nf5 {[%clk 0:02:47.2]} 15. h3 {[%clk 0:02:23.8]} 15...
Be7 {[%clk 0:02:44.1]} 16. Qe2 {[%clk 0:02:12.5]} 16... Nd6 {[%clk 0:02:41.3]}
17. Kh2 {[%clk 0:02:00.8]} 17... Nfe4 {[%clk 0:02:33.2]} 18. Nxe4 {[%clk
0:01:59.9]} 18... Nxe4 {[%clk 0:02:30.1]} 19. Bxe4 {[%clk 0:01:58.8]} 19... dxe4
{[%clk 0:02:29.9]} 20. c4 {[%clk 0:01:58.7]} 20... f6 {[%clk 0:02:19.6]} 21. Ng4
{[%clk 0:01:58.2]} 21... f5 {[%clk 0:02:19.9]} 22. Ne5 {[%clk 0:01:57.4]} 22...
f4 {[%clk 0:02:18.5]} 23. Qg4 {[%clk 0:01:34]} 23... e3 {[%clk 0:01:55]} 24.
Qxe6+ {[%clk 0:01:14.1]} 24... Kh8 {[%clk 0:01:54.1]} 25. Nf7+ {[%clk
0:01:13.5]} 25... Rxf7 {[%clk 0:01:53.6]} 26. Qxf7 {[%clk 0:01:14.4]} 26... exf2
{[%clk 0:01:54.3]} 27. Rxe7 {[%clk 0:00:54.8]} 27... fxg3+ {[%clk 0:01:53.8]}
28. Kxg3 {[%clk 0:00:55.7]} 28... Qd6+ {[%clk 0:01:51.9]} 29. Kxf2 {[%clk
0:00:55.7]} 29... Qh2+ {[%clk 0:01:49.9]} 30. Ke1 {[%clk 0:00:41.4]} 30... Qg3+
{[%clk 0:01:33.8]} 31. Qf2 {[%clk 0:00:39.4]} 31... Qxh3 {[%clk 0:01:18.8]} 32.
Kd2 {[%clk 0:00:38.4]} 32... Qh6+ {[%clk 0:01:13.2]} 33. Qe3 {[%clk 0:00:37.3]}
33... Qh2+ {[%clk 0:01:10.5]} 34. Qe2 {[%clk 0:00:37.3]} 34... Qh6+ {[%clk
0:01:10.2]} 35. Kc3 {[%clk 0:00:37.4]} 35... Bc6 {[%clk 0:00:48.9]} 36. Re1
{[%clk 0:00:36.1]} 36... Qg6 {[%clk 0:00:40.1]} 37. d5 {[%clk 0:00:30.2]} 37...
Bb5 {[%clk 0:00:13.6]} 38. Kb4 {[%clk 0:00:25.6]} 38... Qd6+ {[%clk 0:00:12.8]}
39. Kc3 {[%clk 0:00:22.9]} 39... Qg6 {[%clk 0:00:08.3]} 40. Kd2 {[%clk
0:00:22.1]} 40... Qg5+ {[%clk 0:00:06.5]} 41. Kd1 {[%clk 0:00:21.8]} 41... Rf8
{[%clk 0:00:03.2]} 42. Bxg7+ {[%clk 0:00:19.9]} 42... Kg8 {[%clk 0:00:02.2]} 43.
Bd4 {[%clk 0:00:14.9]} 43... Rf7 {[%clk 0:00:01.7]} 44. Rg1 {[%clk 0:00:11.8]}
44... Qxg1+ {[%clk 0:00:01.8]} 45. Bxg1 {[%clk 0:00:12.7]} 45... Rxe7 {[%clk
0:00:02.4]} 46. Qxe7 {[%clk 0:00:12.7]} 1-0

[Event "*** SCC Grand Prix: Titled Tuesday Blitz"]
[Site "Chess.com"]
[Date "2020.07.21"]
[Round "9"]
[White "AlexTriapishko"]
[Black "djano"]
[Result "1-0"]
[WhiteElo "2633"]
[BlackElo "2453"]
[TimeControl "180+1"]
[EndTime "11:49:07 PDT"]
[Termination "AlexTriapishko won on time"]

1. e4 {[%clk 0:02:59.2]} 1... e5 {[%clk 0:02:56.3]} 2. Nf3 {[%clk 0:02:59.5]}
2... Nc6 {[%clk 0:02:56.2]} 3. Nc3 {[%clk 0:03:00.1]} 3... Nf6 {[%clk
0:02:51.1]} 4. d4 {[%clk 0:03:00.4]} 4... exd4 {[%clk 0:02:51.9]} 5. Nxd4 {[%clk
0:03:01.1]} 5... Bc5 {[%clk 0:02:52.4]} 6. Nxc6 {[%clk 0:03:01.7]} 6... bxc6
{[%clk 0:02:50.3]} 7. Bd3 {[%clk 0:03:00.4]} 7... d6 {[%clk 0:02:47]} 8. O-O
{[%clk 0:03:00.9]} 8... Ng4 {[%clk 0:02:40.1]} 9. h3 {[%clk 0:02:51.5]} 9... Ne5
{[%clk 0:02:39.2]} 10. Na4 {[%clk 0:02:51]} 10... Bb6 {[%clk 0:02:20.1]} 11.
Nxb6 {[%clk 0:02:41.1]} 11... axb6 {[%clk 0:02:19.1]} 12. b3 {[%clk 0:02:41.5]}
12... Qf6 {[%clk 0:02:08.2]} 13. Bb2 {[%clk 0:02:25.9]} 13... Nf3+ {[%clk
0:01:56.2]} 14. Qxf3 {[%clk 0:02:25]} 14... Qxb2 {[%clk 0:01:56.7]} 15. e5
{[%clk 0:02:24.9]} 15... d5 {[%clk 0:01:42.3]} 16. a4 {[%clk 0:02:16.3]} 16...
Be6 {[%clk 0:01:32.2]} 17. Qf4 {[%clk 0:02:09.2]} 17... Qc3 {[%clk 0:01:22.4]}
18. Rae1 {[%clk 0:01:58.5]} 18... Qc5 {[%clk 0:01:21.1]} 19. Re3 {[%clk
0:01:57.9]} 19... Qe7 {[%clk 0:01:02.3]} 20. Rg3 {[%clk 0:01:56.1]} 20... g6
{[%clk 0:01:00.3]} 21. Qh6 {[%clk 0:01:56.1]} 21... Qf8 {[%clk 0:00:57.3]} 22.
Qd2 {[%clk 0:01:50.5]} 22... Qe7 {[%clk 0:00:52.7]} 23. f4 {[%clk 0:01:50.1]}
23... f5 {[%clk 0:00:41.3]} 24. exf6 {[%clk 0:01:48.1]} 24... Qxf6 {[%clk
0:00:41.6]} 25. f5 {[%clk 0:01:48.7]} 25... gxf5 {[%clk 0:00:38.4]} 26. Re1
{[%clk 0:01:24.2]} 26... O-O-O {[%clk 0:00:32.1]} 27. Qg5 {[%clk 0:01:24.7]}
27... Qxg5 {[%clk 0:00:28.1]} 28. Rxg5 {[%clk 0:01:25.6]} 28... Bd7 {[%clk
0:00:18.5]} 29. Bxf5 {[%clk 0:01:24.8]} 29... Bxf5 {[%clk 0:00:14.2]} 30. Rxf5
{[%clk 0:01:25.7]} 30... Rhe8 {[%clk 0:00:13]} 31. Ref1 {[%clk 0:01:24.6]} 31...
Re2 {[%clk 0:00:12.9]} 32. R1f2 {[%clk 0:01:25.1]} 32... Rde8 {[%clk 0:00:12.2]}
33. Rh5 {[%clk 0:01:24.6]} 33... R8e7 {[%clk 0:00:09.1]} 34. g4 {[%clk 0:01:22]}
34... Re1+ {[%clk 0:00:08.5]} 35. Kg2 {[%clk 0:01:21.9]} 35... R1e3 {[%clk
0:00:08.7]} 36. Rf3 {[%clk 0:01:17.9]} 36... Re2+ {[%clk 0:00:08.5]} 37. Rf2
{[%clk 0:01:18.5]} 37... R2e3 {[%clk 0:00:09.1]} 38. Rhf5 {[%clk 0:01:15.1]}
38... d4 {[%clk 0:00:09]} 39. Rf7 {[%clk 0:01:11.2]} 39... c5 {[%clk 0:00:08.2]}
40. Rxe7 {[%clk 0:01:09.2]} 40... Rxe7 {[%clk 0:00:09.1]} 41. g5 {[%clk
0:01:10.1]} 41... Kd7 {[%clk 0:00:07.5]} 42. h4 {[%clk 0:01:10.1]} 42... Ke8
{[%clk 0:00:07]} 43. Kg3 {[%clk 0:01:10.2]} 43... Re3+ {[%clk 0:00:06.7]} 44.
Kg4 {[%clk 0:01:10.5]} 44... d3 {[%clk 0:00:06.3]} 45. cxd3 {[%clk 0:01:07.3]}
45... Rxd3 {[%clk 0:00:07.2]} 46. Kh5 {[%clk 0:01:08.2]} 46... Rxb3 {[%clk
0:00:06.7]} 47. Kh6 {[%clk 0:01:08.9]} 47... Rb4 {[%clk 0:00:06.7]} 48. Rh2
{[%clk 0:01:05]} 48... c4 {[%clk 0:00:06.4]} 49. Kxh7 {[%clk 0:01:04.3]} 49...
c3 {[%clk 0:00:06.6]} 50. Re2+ {[%clk 0:00:47.8]} 50... Kf8 {[%clk 0:00:05]} 51.
h5 {[%clk 0:00:46.9]} 51... Rb2 {[%clk 0:00:04.2]} 52. Re3 {[%clk 0:00:43.1]}
52... c2 {[%clk 0:00:04.2]} 53. Rc3 {[%clk 0:00:42.3]} 53... c5 {[%clk 0:00:01]}
54. g6 {[%clk 0:00:42.6]} 1-0

[Event "*** SCC Grand Prix: Titled Tuesday Blitz"]
[Site "Chess.com"]
[Date "2020.07.21"]
[Round "9"]
[White "Alexander_Moskalenko"]
[Black "wonderfultime"]
[Result "1-0"]
[WhiteElo "2812"]
[BlackElo "2951"]
[TimeControl "180+1"]
[EndTime "11:49:09 PDT"]
[Termination "Alexander_Moskalenko won by resignation"]

1. d4 {[%clk 0:02:45.7]} 1... d5 {[%clk 0:02:59.2]} 2. c4 {[%clk 0:02:43.5]}
2... c6 {[%clk 0:02:59]} 3. Nf3 {[%clk 0:02:44.4]} 3... Nf6 {[%clk 0:02:59.2]}
4. Nc3 {[%clk 0:02:43.7]} 4... a6 {[%clk 0:02:59.2]} 5. e3 {[%clk 0:02:40.7]}
5... Bf5 {[%clk 0:02:59.2]} 6. Qb3 {[%clk 0:02:38.5]} 6... Ra7 {[%clk
0:02:59.3]} 7. Bd2 {[%clk 0:02:36.8]} 7... e6 {[%clk 0:02:59.3]} 8. Nh4 {[%clk
0:02:25.4]} 8... Be4 {[%clk 0:02:57.5]} 9. cxd5 {[%clk 0:02:22.7]} 9... cxd5
{[%clk 0:02:53.1]} 10. f3 {[%clk 0:02:23.1]} 10... Bg6 {[%clk 0:02:51.3]} 11.
Nxg6 {[%clk 0:02:23.4]} 11... hxg6 {[%clk 0:02:52.2]} 12. Bd3 {[%clk 0:02:24]}
12... Bd6 {[%clk 0:02:50.9]} 13. h3 {[%clk 0:02:05.7]} 13... Nc6 {[%clk
0:02:49.4]} 14. O-O-O {[%clk 0:02:04.5]} 14... b5 {[%clk 0:02:47.3]} 15. Kb1
{[%clk 0:02:04.3]} 15... Na5 {[%clk 0:02:44.8]} 16. Qc2 {[%clk 0:02:01.6]} 16...
Rc7 {[%clk 0:02:45.1]} 17. e4 {[%clk 0:02:01.6]} 17... Be7 {[%clk 0:02:31.8]}
18. Bf4 {[%clk 0:01:48.4]} 18... Rc8 {[%clk 0:02:26.4]} 19. g4 {[%clk
0:01:45.6]} 19... Nc4 {[%clk 0:02:14.9]} 20. h4 {[%clk 0:01:27.8]} 20... Bb4
{[%clk 0:02:02.7]} 21. Qb3 {[%clk 0:01:19.5]} 21... Bxc3 {[%clk 0:01:56.2]} 22.
Qxc3 {[%clk 0:01:20.4]} 22... dxe4 {[%clk 0:01:49.1]} 23. Bxe4 {[%clk
0:01:18.2]} 23... Nd5 {[%clk 0:01:45.8]} 24. Bxd5 {[%clk 0:01:12.9]} 24... Qxd5
{[%clk 0:01:46.7]} 25. Qd3 {[%clk 0:01:08.6]} 25... O-O {[%clk 0:01:45.6]} 26.
Bc1 {[%clk 0:01:03.8]} 26... Rfd8 {[%clk 0:01:43.5]} 27. h5 {[%clk 0:01:02.2]}
27... g5 {[%clk 0:01:41.5]} 28. h6 {[%clk 0:01:02.5]} 28... g6 {[%clk 0:01:40]}
29. b3 {[%clk 0:00:39]} 29... Nd6 {[%clk 0:00:58.5]} 30. h7+ {[%clk 0:00:39.9]}
30... Kh8 {[%clk 0:00:57.3]} 31. Qe3 {[%clk 0:00:40.5]} 31... f6 {[%clk
0:00:53.1]} 32. Rde1 {[%clk 0:00:36.2]} 32... Re8 {[%clk 0:00:42.7]} 33. Ba3
{[%clk 0:00:35.8]} 33... Nf7 {[%clk 0:00:39.8]} 34. Qe4 {[%clk 0:00:31]} 34...
Qxe4+ {[%clk 0:00:36.9]} 35. fxe4 {[%clk 0:00:29]} 35... Kg7 {[%clk 0:00:37]}
36. Bb2 {[%clk 0:00:22.2]} 36... Rcd8 {[%clk 0:00:36.1]} 37. Rd1 {[%clk
0:00:21.6]} 37... Rh8 {[%clk 0:00:33.7]} 38. d5 {[%clk 0:00:21]} 38... e5 {[%clk
0:00:33.6]} 39. Rc1 {[%clk 0:00:19.3]} 39... Rd7 {[%clk 0:00:32.2]} 40. Rc6
{[%clk 0:00:19.3]} 40... Rxh7 {[%clk 0:00:31.2]} 41. Rxh7+ {[%clk 0:00:18.5]}
41... Kxh7 {[%clk 0:00:32.1]} 42. Rxf6 {[%clk 0:00:19.2]} 42... Nd6 {[%clk
0:00:32.4]} 43. Bxe5 {[%clk 0:00:18.1]} 43... Nf7 {[%clk 0:00:27.1]} 44. Re6
{[%clk 0:00:18.2]} 44... Nxe5 {[%clk 0:00:20.3]} 45. Rxe5 {[%clk 0:00:18.4]}
45... Kg7 {[%clk 0:00:21.2]} 46. Re6 {[%clk 0:00:18.4]} 46... Rf7 {[%clk
0:00:21.6]} 47. e5 {[%clk 0:00:17.1]} 47... Rf4 {[%clk 0:00:16.4]} 48. d6 {[%clk
0:00:16.9]} 48... Kf7 {[%clk 0:00:16.6]} 49. Re7+ {[%clk 0:00:17]} 49... Kf8
{[%clk 0:00:17]} 50. e6 {[%clk 0:00:13.8]} 50... Rd4 {[%clk 0:00:16.6]} 51. Rd7
{[%clk 0:00:13.8]} 51... b4 {[%clk 0:00:16.3]} 52. Rd8+ {[%clk 0:00:13.3]} 52...
Kg7 {[%clk 0:00:16.3]} 53. e7 {[%clk 0:00:14.2]} 1-0